[Event "Late-Titled-Tuesday-Blitz-January-30-2024"]
[Site "Chess.com"]
[Date "2024.01.30"]
[Round "1"]
[White "AradNazari"]
[Black "TheAlienParty"]
[Result "1-0"]
[WhiteElo "2675"]
[BlackElo "2375"]
[TimeControl "180+1"]
[EndTime "14:08:16 PST"]
[Termination "AradNazari won by resignation"]

1. e4 {[%clk 0:02:52.3]} 1... e5 {[%clk 0:02:42.4]} 2. f4 {[%clk 0:02:51.8]}
2... exf4 {[%clk 0:02:41.5]} 3. Nf3 {[%clk 0:02:51.4]} 3... d6 {[%clk 0:02:39]}
4. Bc4 {[%clk 0:02:43.9]} 4... h6 {[%clk 0:02:37.9]} 5. h4 {[%clk 0:02:37.9]}
5... Nf6 {[%clk 0:02:37.5]} 6. Nc3 {[%clk 0:02:37.3]} 6... Be6 {[%clk
0:02:34.9]} 7. Bxe6 {[%clk 0:01:59.8]} 7... fxe6 {[%clk 0:02:34.3]} 8. d4 {[%clk
0:02:00.4]} 8... Nc6 {[%clk 0:02:29.1]} 9. Bxf4 {[%clk 0:01:56.5]} 9... Nh5
{[%clk 0:02:22.3]} 10. Be3 {[%clk 0:01:52.2]} 10... Be7 {[%clk 0:02:14.2]} 11.
Ne5 {[%clk 0:01:49.9]} 11... Nxe5 {[%clk 0:02:09.2]} 12. dxe5 {[%clk 0:01:40.1]}
12... Bxh4+ {[%clk 0:02:06.9]} 13. Kd2 {[%clk 0:01:20.2]} 13... dxe5+ {[%clk
0:02:03.8]} 14. Nd5 {[%clk 0:01:20]} 14... Ng3 {[%clk 0:01:55]} 15. Qg4 {[%clk
0:01:11.6]} 15... exd5 {[%clk 0:01:45]} 16. Rxh4 {[%clk 0:00:44.6]} 16... Nxe4+
{[%clk 0:01:43.1]} 17. Ke2 {[%clk 0:00:45.1]} 17... Qd7 {[%clk 0:01:29.7]} 18.
Qh5+ {[%clk 0:00:44.9]} 18... Qf7 {[%clk 0:01:28.1]} 19. Qxe5+ {[%clk
0:00:45.2]} 19... Qe7 {[%clk 0:01:20.2]} 20. Qh5+ {[%clk 0:00:30]} 20... Qf7
{[%clk 0:01:16.1]} 21. Qe5+ {[%clk 0:00:26]} 21... Qe7 {[%clk 0:01:15]} 22. Qh5+
{[%clk 0:00:26]} 22... Qf7 {[%clk 0:01:14.8]} 23. Qg4 {[%clk 0:00:17.5]} 23...
Qd7 {[%clk 0:01:03.5]} 24. Qg6+ {[%clk 0:00:12.6]} 24... Qf7 {[%clk 0:01:02.3]}
25. Qg4 {[%clk 0:00:08.5]} 25... Nf6 {[%clk 0:01:01.4]} 26. Qf3 {[%clk
0:00:06.6]} 26... O-O-O {[%clk 0:00:59.9]} 27. Rf1 {[%clk 0:00:06.8]} 27... Rhe8
{[%clk 0:00:58.5]} 28. Kd1 {[%clk 0:00:07.1]} 28... d4 {[%clk 0:00:58.1]} 29.
Rxd4 {[%clk 0:00:06.4]} 29... Rxd4+ {[%clk 0:00:57.1]} 30. Bxd4 {[%clk
0:00:07.3]} 30... Rd8 {[%clk 0:00:56.1]} 31. c3 {[%clk 0:00:07]} 31... c5 {[%clk
0:00:54.7]} 32. Qf5+ {[%clk 0:00:06.9]} 32... Qd7 {[%clk 0:00:54.8]} 33. Qxc5+
{[%clk 0:00:07.1]} 33... Kb8 {[%clk 0:00:54.9]} 34. Qxa7+ {[%clk 0:00:07.4]}
34... Kc8 {[%clk 0:00:54.4]} 35. Qc5+ {[%clk 0:00:07.8]} 35... Qc7 {[%clk
0:00:51.9]} 36. Qf5+ {[%clk 0:00:06.8]} 36... Qd7 {[%clk 0:00:47.9]} 37. Kc1
{[%clk 0:00:07.3]} 37... Qxf5 {[%clk 0:00:46.3]} 38. Rxf5 {[%clk 0:00:08.2]}
38... Rg8 {[%clk 0:00:34.5]} 39. Bxf6 {[%clk 0:00:07.7]} 39... gxf6 {[%clk
0:00:34.5]} 40. Rxf6 {[%clk 0:00:08.6]} 40... Rxg2 {[%clk 0:00:34.5]} 41. Rxh6
{[%clk 0:00:09.2]} 41... Kc7 {[%clk 0:00:34.6]} 42. a4 {[%clk 0:00:09.4]} 42...
Kb8 {[%clk 0:00:34.5]} 43. Kb1 {[%clk 0:00:09.8]} 43... Ka7 {[%clk 0:00:35]} 44.
Ka2 {[%clk 0:00:10.4]} 44... Kb8 {[%clk 0:00:33.9]} 45. Ka3 {[%clk 0:00:10.8]}
45... Ka7 {[%clk 0:00:34]} 46. b4 {[%clk 0:00:11.4]} 46... Rc2 {[%clk
0:00:33.2]} 47. Kb3 {[%clk 0:00:11.9]} 47... Rc1 {[%clk 0:00:33.8]} 48. a5
{[%clk 0:00:12.5]} 48... Rb1+ {[%clk 0:00:33.5]} 49. Ka4 {[%clk 0:00:12.5]}
49... Rg1 {[%clk 0:00:32.5]} 50. c4 {[%clk 0:00:12.7]} 50... Rg4 {[%clk
0:00:30.8]} 51. Kb5 {[%clk 0:00:11.8]} 51... Rg5+ {[%clk 0:00:30.7]} 52. c5
{[%clk 0:00:12.4]} 52... Ka8 {[%clk 0:00:26.9]} 53. Rh8+ {[%clk 0:00:12]} 53...
Ka7 {[%clk 0:00:26.5]} 54. Rh7 {[%clk 0:00:12.7]} 54... Ka8 {[%clk 0:00:26]} 55.
a6 {[%clk 0:00:12.9]} 55... Rg4 {[%clk 0:00:22.1]} 56. axb7+ {[%clk 0:00:09.5]}
56... Kb8 {[%clk 0:00:21.2]} 57. Rh8+ {[%clk 0:00:06]} 57... Kxb7 {[%clk
0:00:20.8]} 58. Rh7+ {[%clk 0:00:06.7]} 58... Kb8 {[%clk 0:00:20.7]} 59. Ka5
{[%clk 0:00:07.3]} 59... Ka8 {[%clk 0:00:19.8]} 60. b5 {[%clk 0:00:07.1]} 60...
Rg6 {[%clk 0:00:19.2]} 61. c6 {[%clk 0:00:07.6]} 61... Kb8 {[%clk 0:00:18.3]}
62. Kb6 {[%clk 0:00:07.7]} 62... Rg8 {[%clk 0:00:18.1]} 63. Rb7+ {[%clk
0:00:07.5]} 63... Ka8 {[%clk 0:00:18.4]} 64. Ra7+ {[%clk 0:00:08]} 64... Kb8
{[%clk 0:00:18.6]} 65. c7+ {[%clk 0:00:08.7]} 65... Kc8 {[%clk 0:00:18.6]} 66.
Ra8+ {[%clk 0:00:09.6]} 1-0

[Event "Late-Titled-Tuesday-Blitz-January-30-2024"]
[Site "Chess.com"]
[Date "2024.01.30"]
[Round "1"]
[White "LiemLe"]
[Black "Zura_19"]
[Result "1-0"]
[WhiteElo "3057"]
[BlackElo "2533"]
[TimeControl "180+1"]
[EndTime "14:08:24 PST"]
[Termination "LiemLe won by resignation"]

1. Nf3 {[%clk 0:03:00.9]} 1... Nf6 {[%clk 0:02:57.7]} 2. c4 {[%clk 0:03:01.4]}
2... e6 {[%clk 0:02:57.3]} 3. Nc3 {[%clk 0:03:01]} 3... c5 {[%clk 0:02:47.6]} 4.
g3 {[%clk 0:02:58.9]} 4... b6 {[%clk 0:02:46.8]} 5. Bg2 {[%clk 0:02:58.8]} 5...
Bb7 {[%clk 0:02:46.8]} 6. O-O {[%clk 0:02:59.2]} 6... Be7 {[%clk 0:02:46.1]} 7.
d4 {[%clk 0:02:58]} 7... cxd4 {[%clk 0:02:46.1]} 8. Qxd4 {[%clk 0:02:58.9]} 8...
d6 {[%clk 0:02:42.4]} 9. Rd1 {[%clk 0:02:54.7]} 9... a6 {[%clk 0:02:30.2]} 10.
b3 {[%clk 0:02:22.2]} 10... Nbd7 {[%clk 0:02:01.6]} 11. Bb2 {[%clk 0:02:05.9]}
11... O-O {[%clk 0:01:54.5]} 12. e4 {[%clk 0:02:03.9]} 12... Qc7 {[%clk
0:01:52.4]} 13. Qe3 {[%clk 0:02:02.4]} 13... Rfe8 {[%clk 0:01:43]} 14. Rac1
{[%clk 0:02:01.3]} 14... Rac8 {[%clk 0:01:37.5]} 15. Nd4 {[%clk 0:01:58.6]}
15... h5 {[%clk 0:01:23.6]} 16. h3 {[%clk 0:01:58.5]} 16... Qb8 {[%clk
0:01:13.6]} 17. Qe2 {[%clk 0:01:44.1]} 17... Nf8 {[%clk 0:01:08.1]} 18. Na4
{[%clk 0:01:38.6]} 18... Ba8 {[%clk 0:01:05.3]} 19. Qe3 {[%clk 0:01:00.3]} 19...
Ng6 {[%clk 0:00:48.3]} 20. Ne2 {[%clk 0:00:59.7]} 20... Nd7 {[%clk 0:00:36.3]}
21. Nac3 {[%clk 0:00:50.9]} 21... b5 {[%clk 0:00:29.1]} 22. cxb5 {[%clk
0:00:48.4]} 22... axb5 {[%clk 0:00:30]} 23. Nd4 {[%clk 0:00:41.4]} 23... b4
{[%clk 0:00:22.2]} 24. Na4 {[%clk 0:00:40.4]} 24... Nc5 {[%clk 0:00:13.3]} 25.
Nxc5 {[%clk 0:00:38]} 25... dxc5 {[%clk 0:00:14.2]} 26. Nf3 {[%clk 0:00:35.2]}
26... Bc6 {[%clk 0:00:07.7]} 27. Nd2 {[%clk 0:00:30.7]} 27... Qa8 {[%clk
0:00:08.2]} 28. Nc4 {[%clk 0:00:31.1]} 28... Red8 {[%clk 0:00:07.5]} 29. Nb6
{[%clk 0:00:28.2]} 29... Qxa2 {[%clk 0:00:07.7]} 30. Nxc8 {[%clk 0:00:27.6]}
30... Rxc8 {[%clk 0:00:07.3]} 31. Rd2 {[%clk 0:00:21.3]} 31... Qa8 {[%clk
0:00:05.4]} 32. h4 {[%clk 0:00:20.3]} 32... Qb7 {[%clk 0:00:05]} 33. Bf3 {[%clk
0:00:20.5]} 33... Ra8 {[%clk 0:00:03.9]} 34. Re2 {[%clk 0:00:19.5]} 34... Ra2
{[%clk 0:00:03.9]} 35. Bxh5 {[%clk 0:00:19.2]} 35... e5 {[%clk 0:00:02.1]} 36.
Bxg6 {[%clk 0:00:18.7]} 36... fxg6 {[%clk 0:00:02.4]} 37. Bxe5 {[%clk
0:00:18.5]} 37... Rxe2 {[%clk 0:00:02.6]} 38. Qxe2 {[%clk 0:00:19.4]} 38... Bxe4
{[%clk 0:00:03.1]} 39. Re1 {[%clk 0:00:19.4]} 39... Bh1 {[%clk 0:00:03]} 40. Qf1
{[%clk 0:00:14.7]} 40... Bf3 {[%clk 0:00:03]} 41. Bf4 {[%clk 0:00:13.9]} 41...
Bf6 {[%clk 0:00:02.9]} 42. Qc4+ {[%clk 0:00:13]} 42... Kh7 {[%clk 0:00:03.1]}
43. Kh2 {[%clk 0:00:11.4]} 43... Qd7 {[%clk 0:00:03.6]} 44. Qxc5 {[%clk
0:00:10.8]} 44... Qg4 {[%clk 0:00:03.7]} 45. Qe3 {[%clk 0:00:10.9]} 45... Bxh4
{[%clk 0:00:03.6]} 46. Qe6 {[%clk 0:00:10]} 46... Bf6 {[%clk 0:00:03.4]} 47.
Qxg4 {[%clk 0:00:10.1]} 47... Bxg4 {[%clk 0:00:03.9]} 48. Be5 {[%clk 0:00:10.6]}
48... Bg5 {[%clk 0:00:04.1]} 49. f4 {[%clk 0:00:10.6]} 49... Be7 {[%clk
0:00:04.3]} 50. Ra1 {[%clk 0:00:11.1]} 50... Be6 {[%clk 0:00:04.1]} 51. Ra7
{[%clk 0:00:11.7]} 51... Bf8 {[%clk 0:00:03.8]} 52. Kg2 {[%clk 0:00:11.8]} 52...
Bxb3 {[%clk 0:00:04]} 53. Kh2 {[%clk 0:00:10.1]} 53... Bd5 {[%clk 0:00:04.5]}
54. Ra5 {[%clk 0:00:10.1]} 54... Bg8 {[%clk 0:00:04]} 55. Rb5 {[%clk 0:00:10.1]}
55... b3 {[%clk 0:00:04.5]} 56. Rb7 {[%clk 0:00:09.4]} 56... g5 {[%clk
0:00:03.3]} 57. f5 {[%clk 0:00:09]} 57... g4 {[%clk 0:00:03.4]} 58. f6 {[%clk
0:00:08.2]} 58... Kg6 {[%clk 0:00:03.4]} 59. fxg7 {[%clk 0:00:08.2]} 59... Bc5
{[%clk 0:00:03.2]} 60. Rb5 {[%clk 0:00:08.3]} 60... Be3 {[%clk 0:00:03.1]} 61.
Rb6+ {[%clk 0:00:08.4]} 61... Kh7 {[%clk 0:00:02.8]} 62. Rb8 {[%clk 0:00:07.9]}
62... Bc5 {[%clk 0:00:01.9]} 63. Bb2 {[%clk 0:00:08]} 63... Be7 {[%clk
0:00:02.3]} 64. Kg2 {[%clk 0:00:07.8]} 64... Bd6 {[%clk 0:00:02.8]} 65. Rd8
{[%clk 0:00:07.3]} 65... Bd5+ {[%clk 0:00:03.3]} 66. Kh2 {[%clk 0:00:06.8]} 1-0

[Event "Late-Titled-Tuesday-Blitz-January-30-2024"]
[Site "Chess.com"]
[Date "2024.01.30"]
[Round "1"]
[White "rcmz"]
[Black "Fh2411"]
[Result "0-1"]
[WhiteElo "2124"]
[BlackElo "2574"]
[TimeControl "180+1"]
[EndTime "14:08:26 PST"]
[Termination "Fh2411 won on time"]

1. b4 {[%clk 0:02:58.1]} 1... d5 {[%clk 0:02:47.3]} 2. Bb2 {[%clk 0:02:57.5]}
2... Bf5 {[%clk 0:02:46.1]} 3. e3 {[%clk 0:02:57.4]} 3... e6 {[%clk 0:02:46.2]}
4. f4 {[%clk 0:02:56.1]} 4... Nf6 {[%clk 0:02:44.9]} 5. a3 {[%clk 0:02:55.6]}
5... Be7 {[%clk 0:02:33.2]} 6. Nf3 {[%clk 0:02:54.6]} 6... O-O {[%clk
0:02:32.6]} 7. Be2 {[%clk 0:02:54.8]} 7... h6 {[%clk 0:02:30.4]} 8. O-O {[%clk
0:02:54.5]} 8... Nbd7 {[%clk 0:02:30.5]} 9. c4 {[%clk 0:02:48.9]} 9... dxc4
{[%clk 0:02:20.8]} 10. Bxc4 {[%clk 0:02:48.3]} 10... c5 {[%clk 0:02:21]} 11. b5
{[%clk 0:02:47]} 11... Nb6 {[%clk 0:02:20.8]} 12. d3 {[%clk 0:02:45.2]} 12...
Nxc4 {[%clk 0:02:12.8]} 13. dxc4 {[%clk 0:02:44.5]} 13... Bd3 {[%clk 0:02:13.5]}
14. Re1 {[%clk 0:02:37.6]} 14... Bxc4 {[%clk 0:02:12.2]} 15. a4 {[%clk 0:02:38]}
15... Qxd1 {[%clk 0:02:03]} 16. Rxd1 {[%clk 0:02:37.3]} 16... Be2 {[%clk
0:01:55.7]} 17. Rd2 {[%clk 0:02:37]} 17... Bxf3 {[%clk 0:01:55.7]} 18. gxf3
{[%clk 0:02:37]} 18... Rfd8 {[%clk 0:01:54.5]} 19. Be5 {[%clk 0:02:30.7]} 19...
Rd5 {[%clk 0:01:32.6]} 20. Raa2 {[%clk 0:02:28.5]} 20... Rad8 {[%clk 0:01:30.1]}
21. Kf2 {[%clk 0:02:28.1]} 21... Rxd2+ {[%clk 0:01:16.9]} 22. Nxd2 {[%clk
0:02:19.9]} 22... Nd5 {[%clk 0:01:16.7]} 23. Ke2 {[%clk 0:02:14.5]} 23... f6
{[%clk 0:01:13.6]} 24. Ba1 {[%clk 0:02:11.9]} 24... g5 {[%clk 0:00:56.9]} 25.
fxg5 {[%clk 0:02:07.1]} 25... hxg5 {[%clk 0:00:57.8]} 26. Nc4 {[%clk 0:02:01.3]}
26... Kf7 {[%clk 0:00:57.3]} 27. Rd2 {[%clk 0:02:00.2]} 27... Rh8 {[%clk
0:00:55.3]} 28. Kf1 {[%clk 0:01:54.6]} 28... Ke8 {[%clk 0:00:34.7]} 29. Kg2
{[%clk 0:01:49.3]} 29... Rh4 {[%clk 0:00:31.8]} 30. e4 {[%clk 0:01:39.5]} 30...
Nf4+ {[%clk 0:00:32.1]} 31. Kg1 {[%clk 0:01:35.4]} 31... Rh3 {[%clk 0:00:30.6]}
32. Rf2 {[%clk 0:01:28.1]} 32... Kf7 {[%clk 0:00:20.4]} 33. Ne3 {[%clk
0:01:12.4]} 33... Rh8 {[%clk 0:00:19.7]} 34. Rd2 {[%clk 0:01:10.1]} 34... Rd8
{[%clk 0:00:19.1]} 35. Rxd8 {[%clk 0:01:09.1]} 35... Bxd8 {[%clk 0:00:20]} 36.
Kf2 {[%clk 0:01:02.2]} 36... Ba5 {[%clk 0:00:17]} 37. Nc4 {[%clk 0:01:01.3]}
37... Bc7 {[%clk 0:00:17.2]} 38. Kg1 {[%clk 0:00:56.1]} 38... Ke7 {[%clk
0:00:17.4]} 39. Bb2 {[%clk 0:00:52.9]} 39... a6 {[%clk 0:00:15.1]} 40. b6 {[%clk
0:00:52]} 40... Bd8 {[%clk 0:00:14.1]} 41. a5 {[%clk 0:00:49.6]} 41... Nd3
{[%clk 0:00:14.6]} 42. Bc3 {[%clk 0:00:48.7]} 42... Nf4 {[%clk 0:00:13.6]} 43.
Bd2 {[%clk 0:00:47.2]} 43... Ng6 {[%clk 0:00:13.1]} 44. Kg2 {[%clk 0:00:43.2]}
44... Kd7 {[%clk 0:00:13.6]} 45. h3 {[%clk 0:00:41.1]} 45... Be7 {[%clk
0:00:14]} 46. Kf2 {[%clk 0:00:40.5]} 46... Kc6 {[%clk 0:00:14.8]} 47. Ke3 {[%clk
0:00:37.5]} 47... Kb5 {[%clk 0:00:14.6]} 48. Kd3 {[%clk 0:00:36.6]} 48... Kc6
{[%clk 0:00:13.1]} 49. Be3 {[%clk 0:00:34.6]} 49... Bd6 {[%clk 0:00:13.4]} 50.
Kc3 {[%clk 0:00:28.5]} 50... Ne5 {[%clk 0:00:13.3]} 51. Nxe5+ {[%clk 0:00:16.9]}
51... Bxe5+ {[%clk 0:00:14.2]} 52. Kc4 {[%clk 0:00:17.3]} 52... Bd6 {[%clk
0:00:15.1]} 53. Bf2 {[%clk 0:00:15.2]} 53... Be7 {[%clk 0:00:15.5]} 54. h4
{[%clk 0:00:15.1]} 54... gxh4 {[%clk 0:00:14.3]} 55. Bxh4 {[%clk 0:00:15.1]}
55... Bd8 {[%clk 0:00:13.9]} 56. e5 {[%clk 0:00:13.7]} 56... Be7 {[%clk
0:00:13.7]} 57. exf6 {[%clk 0:00:13.1]} 57... Bf8 {[%clk 0:00:13.7]} 58. f7
{[%clk 0:00:09]} 58... Kd6 {[%clk 0:00:12.8]} 59. f4 {[%clk 0:00:07]} 59... e5
{[%clk 0:00:12.4]} 60. fxe5+ {[%clk 0:00:06.4]} 60... Kxe5 {[%clk 0:00:13.3]}
61. Bf2 {[%clk 0:00:04.2]} 61... Ke6 {[%clk 0:00:12.9]} 62. Bxc5 {[%clk
0:00:03.7]} 62... Kxf7 {[%clk 0:00:11.9]} 0-1

[Event "Late-Titled-Tuesday-Blitz-January-30-2024"]
[Site "Chess.com"]
[Date "2024.01.30"]
[Round "1"]
[White "NCchamp"]
[Black "Baby_Legs"]
[Result "1-0"]
[WhiteElo "2321"]
[BlackElo "2610"]
[TimeControl "180+1"]
[EndTime "14:08:27 PST"]
[Termination "NCchamp won by resignation"]

1. e4 {[%clk 0:03:00.2]} 1... c5 {[%clk 0:02:59.4]} 2. Nc3 {[%clk 0:03:00.2]}
2... Nc6 {[%clk 0:02:59]} 3. Bb5 {[%clk 0:03:00]} 3... Nd4 {[%clk 0:02:59.3]} 4.
Nf3 {[%clk 0:03:00.1]} 4... g6 {[%clk 0:02:57.6]} 5. Nxd4 {[%clk 0:02:58.4]}
5... cxd4 {[%clk 0:02:55.4]} 6. Ne2 {[%clk 0:02:59.3]} 6... Bg7 {[%clk
0:02:55.2]} 7. c3 {[%clk 0:02:58.9]} 7... a6 {[%clk 0:02:47.8]} 8. Bd3 {[%clk
0:02:58.8]} 8... dxc3 {[%clk 0:02:46.5]} 9. dxc3 {[%clk 0:02:57.2]} 9... d6
{[%clk 0:02:46.8]} 10. O-O {[%clk 0:02:56.7]} 10... Nf6 {[%clk 0:02:46.1]} 11.
h3 {[%clk 0:02:56.8]} 11... O-O {[%clk 0:02:45.8]} 12. Be3 {[%clk 0:02:56.1]}
12... Qc7 {[%clk 0:02:42.3]} 13. a4 {[%clk 0:02:53.8]} 13... Bd7 {[%clk
0:02:42.1]} 14. a5 {[%clk 0:02:53.7]} 14... Bc6 {[%clk 0:02:38]} 15. Qc2 {[%clk
0:02:40.5]} 15... d5 {[%clk 0:02:30.9]} 16. Bb6 {[%clk 0:02:24.9]} 16... Qb8
{[%clk 0:02:22.9]} 17. Ng3 {[%clk 0:02:22]} 17... Nd7 {[%clk 0:02:15.2]} 18.
exd5 {[%clk 0:02:09.8]} 18... Bxd5 {[%clk 0:02:16.1]} 19. Be3 {[%clk 0:01:33.4]}
19... Qc7 {[%clk 0:02:15.7]} 20. Be4 {[%clk 0:01:27.6]} 20... Bxe4 {[%clk
0:02:12.9]} 21. Nxe4 {[%clk 0:01:27.1]} 21... Qc6 {[%clk 0:02:06.3]} 22. Ng5
{[%clk 0:01:24.9]} 22... h6 {[%clk 0:01:59.7]} 23. Nf3 {[%clk 0:01:24.1]} 23...
e5 {[%clk 0:01:59.7]} 24. Rfd1 {[%clk 0:01:23]} 24... Rfd8 {[%clk 0:01:57.6]}
25. Qa4 {[%clk 0:01:17.9]} 25... Qxa4 {[%clk 0:01:42.4]} 26. Rxa4 {[%clk
0:01:18.8]} 26... Nf8 {[%clk 0:01:42.7]} 27. Re1 {[%clk 0:01:02]} 27... f6
{[%clk 0:01:24.6]} 28. Rb4 {[%clk 0:00:58]} 28... Rd7 {[%clk 0:01:24.6]} 29. Nd2
{[%clk 0:00:50.7]} 29... Ne6 {[%clk 0:01:08.2]} 30. Nc4 {[%clk 0:00:48.2]} 30...
Re8 {[%clk 0:01:00.5]} 31. Rb6 {[%clk 0:00:45.4]} 31... Bf8 {[%clk 0:00:57.9]}
32. f3 {[%clk 0:00:30.4]} 32... Kf7 {[%clk 0:00:57.9]} 33. Bf2 {[%clk
0:00:30.3]} 33... Rc8 {[%clk 0:00:55.5]} 34. Ne3 {[%clk 0:00:29.2]} 34... Bc5
{[%clk 0:00:53.7]} 35. Rb3 {[%clk 0:00:29.4]} 35... Ba7 {[%clk 0:00:44.5]} 36.
Ng4 {[%clk 0:00:27.6]} 36... Bxf2+ {[%clk 0:00:43.4]} 37. Kxf2 {[%clk
0:00:26.5]} 37... h5 {[%clk 0:00:42.6]} 38. Ne3 {[%clk 0:00:24]} 38... Rc5
{[%clk 0:00:42.5]} 39. Rd1 {[%clk 0:00:22.4]} 39... Rdc7 {[%clk 0:00:37.7]} 40.
Nd5 {[%clk 0:00:20.7]} 40... Rd7 {[%clk 0:00:36.6]} 41. Ne3 {[%clk 0:00:21]}
41... Rcc7 {[%clk 0:00:24.2]} 42. Nd5 {[%clk 0:00:15.8]} 42... Rc6 {[%clk
0:00:20.3]} 43. Ne3 {[%clk 0:00:15.6]} 43... Rcc7 {[%clk 0:00:18.8]} 44. Nd5
{[%clk 0:00:13.4]} 44... Nd8 {[%clk 0:00:11.9]} 45. Nxc7 {[%clk 0:00:10.7]}
45... Rxd1 {[%clk 0:00:11.6]} 46. Ke2 {[%clk 0:00:10]} 46... Rg1 {[%clk
0:00:11.3]} 47. Kf2 {[%clk 0:00:10.2]} 47... Ra1 {[%clk 0:00:12]} 48. Nd5 {[%clk
0:00:06.4]} 48... Rxa5 {[%clk 0:00:11.7]} 49. Ne3 {[%clk 0:00:04.8]} 49... Rb5
{[%clk 0:00:11.7]} 50. Ra3 {[%clk 0:00:04.8]} 50... Rxb2+ {[%clk 0:00:11.3]} 51.
Kg3 {[%clk 0:00:04.6]} 51... Ke6 {[%clk 0:00:11.6]} 52. Nc4 {[%clk 0:00:04.3]}
52... Nc6 {[%clk 0:00:11.5]} 53. Nxb2 {[%clk 0:00:04.6]} 53... f5 {[%clk
0:00:08.2]} 54. Nd3 {[%clk 0:00:03.9]} 54... g5 {[%clk 0:00:08.2]} 55. Nb4
{[%clk 0:00:04.1]} 55... Ne7 {[%clk 0:00:07.1]} 56. Ra5 {[%clk 0:00:03.6]} 56...
f4+ {[%clk 0:00:07.5]} 57. Kf2 {[%clk 0:00:04]} 57... Nf5 {[%clk 0:00:07.8]} 58.
Nd3 {[%clk 0:00:04.3]} 58... g4 {[%clk 0:00:06.1]} 59. Rxe5+ {[%clk 0:00:04.5]}
1-0

[Event "Late-Titled-Tuesday-Blitz-January-30-2024"]
[Site "Chess.com"]
[Date "2024.01.30"]
[Round "1"]
[White "VitaliyChayka"]
[Black "js20000"]
[Result "0-1"]
[WhiteElo "2439"]
[BlackElo "2766"]
[TimeControl "180+1"]
[EndTime "14:08:28 PST"]
[Termination "js20000 won by checkmate"]

1. d4 {[%clk 0:03:00.9]} 1... d5 {[%clk 0:02:51.7]} 2. Bf4 {[%clk 0:03:01.3]}
2... c5 {[%clk 0:02:50]} 3. e3 {[%clk 0:03:01.9]} 3... Nc6 {[%clk 0:02:49.7]} 4.
Nf3 {[%clk 0:03:01.9]} 4... cxd4 {[%clk 0:02:48.7]} 5. exd4 {[%clk 0:03:01.8]}
5... Bg4 {[%clk 0:02:49]} 6. c3 {[%clk 0:03:01.6]} 6... e6 {[%clk 0:02:48.4]} 7.
Nbd2 {[%clk 0:03:00.4]} 7... Bd6 {[%clk 0:02:48.1]} 8. Bg3 {[%clk 0:02:56.7]}
8... Nge7 {[%clk 0:02:46.8]} 9. Bd3 {[%clk 0:02:56.2]} 9... Nf5 {[%clk
0:02:46.3]} 10. Bxd6 {[%clk 0:02:54.9]} 10... Nxd6 {[%clk 0:02:47.2]} 11. O-O
{[%clk 0:02:52.5]} 11... Bf5 {[%clk 0:02:46.9]} 12. Bxf5 {[%clk 0:02:45.8]}
12... Nxf5 {[%clk 0:02:47.8]} 13. Qb3 {[%clk 0:02:45.3]} 13... Nd6 {[%clk
0:02:46.2]} 14. Ne5 {[%clk 0:02:43.4]} 14... Qc7 {[%clk 0:02:43.1]} 15. Ndf3
{[%clk 0:02:42.3]} 15... O-O {[%clk 0:02:42.6]} 16. Rfe1 {[%clk 0:02:41]} 16...
Rae8 {[%clk 0:02:36.1]} 17. Re2 {[%clk 0:02:30.7]} 17... Ne7 {[%clk 0:02:14.3]}
18. Rae1 {[%clk 0:02:22.3]} 18... Qc8 {[%clk 0:02:08]} 19. Qa3 {[%clk
0:02:18.9]} 19... Nb5 {[%clk 0:02:03.1]} 20. Qa4 {[%clk 0:02:15.4]} 20... a6
{[%clk 0:02:03.2]} 21. Nd3 {[%clk 0:02:14]} 21... Nf5 {[%clk 0:01:59]} 22. Nc5
{[%clk 0:02:10.6]} 22... Nbd6 {[%clk 0:01:53.7]} 23. Ne5 {[%clk 0:02:07.5]}
23... Rd8 {[%clk 0:01:48.7]} 24. f3 {[%clk 0:02:04.1]} 24... Rfe8 {[%clk
0:01:32.9]} 25. Qa5 {[%clk 0:01:54.7]} 25... f6 {[%clk 0:01:26.4]} 26. Ned3
{[%clk 0:01:43.8]} 26... e5 {[%clk 0:01:12]} 27. dxe5 {[%clk 0:01:39.6]} 27...
Nc4 {[%clk 0:01:12.3]} 28. Qb4 {[%clk 0:01:25.9]} 28... a5 {[%clk 0:01:10.6]}
29. Qxb7 {[%clk 0:01:20.8]} 29... fxe5 {[%clk 0:01:07]} 30. Qxc8 {[%clk
0:00:55.4]} 30... Rxc8 {[%clk 0:01:07.9]} 31. Nd7 {[%clk 0:00:55.5]} 31... e4
{[%clk 0:00:58.1]} 32. fxe4 {[%clk 0:00:56.4]} 32... dxe4 {[%clk 0:00:58.2]} 33.
Rxe4 {[%clk 0:00:57.1]} 33... Rxe4 {[%clk 0:00:58.2]} 34. Rxe4 {[%clk 0:00:58]}
34... Nfd6 {[%clk 0:00:58.6]} 35. Re7 {[%clk 0:00:51]} 35... Nf5 {[%clk
0:00:58]} 36. Re6 {[%clk 0:00:47]} 36... Rd8 {[%clk 0:00:49.2]} 37. N7e5 {[%clk
0:00:40.4]} 37... Nxe5 {[%clk 0:00:46.7]} 38. Nxe5 {[%clk 0:00:41.3]} 38... Rd1+
{[%clk 0:00:45.9]} 39. Kf2 {[%clk 0:00:41.9]} 39... g6 {[%clk 0:00:42.1]} 40.
Re8+ {[%clk 0:00:37.7]} 40... Kg7 {[%clk 0:00:42.3]} 41. Nc4 {[%clk 0:00:38.6]}
41... Nh6 {[%clk 0:00:26.4]} 42. Nxa5 {[%clk 0:00:35.2]} 42... Rd2+ {[%clk
0:00:22.1]} 43. Re2 {[%clk 0:00:35]} 43... Ng4+ {[%clk 0:00:21.8]} 44. Ke1
{[%clk 0:00:32.4]} 44... Rd5 {[%clk 0:00:22.4]} 45. h3 {[%clk 0:00:28.9]} 45...
Ne5 {[%clk 0:00:20.6]} 46. Nb3 {[%clk 0:00:28.3]} 46... Nd3+ {[%clk 0:00:20.5]}
47. Kf1 {[%clk 0:00:23.9]} 47... Nf4 {[%clk 0:00:20.2]} 48. Re7+ {[%clk
0:00:22.3]} 48... Kf6 {[%clk 0:00:19.8]} 49. Rxh7 {[%clk 0:00:21.7]} 49... Rd1+
{[%clk 0:00:19.7]} 50. Kf2 {[%clk 0:00:21.8]} 50... Rb1 {[%clk 0:00:20.3]} 51.
Kf3 {[%clk 0:00:17.8]} 51... Ne6 {[%clk 0:00:20.1]} 52. Nd4 {[%clk 0:00:10]}
52... Ng5+ {[%clk 0:00:19.5]} 53. Ke3 {[%clk 0:00:05.5]} 53... Nxh7 {[%clk
0:00:20.4]} 54. b4 {[%clk 0:00:06]} 54... Ng5 {[%clk 0:00:19.7]} 55. a4 {[%clk
0:00:05.5]} 55... Nf7 {[%clk 0:00:20]} 56. a5 {[%clk 0:00:05.6]} 56... Nd6
{[%clk 0:00:20.4]} 57. Kd3 {[%clk 0:00:04.9]} 57... Rd1+ {[%clk 0:00:19.7]} 58.
Kc2 {[%clk 0:00:04]} 58... Rg1 {[%clk 0:00:20]} 59. g4 {[%clk 0:00:03.5]} 59...
Rg2+ {[%clk 0:00:20.4]} 60. Kb3 {[%clk 0:00:03.7]} 60... Rg3 {[%clk 0:00:20.5]}
61. b5 {[%clk 0:00:03.4]} 61... Ke7 {[%clk 0:00:18.1]} 62. Kb4 {[%clk 0:00:03]}
62... Kd7 {[%clk 0:00:18.2]} 63. c4 {[%clk 0:00:02.8]} 63... Rg1 {[%clk
0:00:16.8]} 64. a6 {[%clk 0:00:03.7]} 64... Rb1+ {[%clk 0:00:16.5]} 65. Kc5
{[%clk 0:00:03.3]} 65... Rc1 {[%clk 0:00:16.7]} 66. a7 {[%clk 0:00:03.6]} 66...
Rxc4+ {[%clk 0:00:16.6]} 67. Kb6 {[%clk 0:00:04.2]} 67... Nc8+ {[%clk
0:00:16.4]} 68. Kb7 {[%clk 0:00:02.4]} 68... Rc7+ {[%clk 0:00:15.2]} 69. Ka6
{[%clk 0:00:02.1]} 69... Rxa7# {[%clk 0:00:15.2]} 0-1